Cogmind - Beta 10.2 @@@ ROGUE MODE // 2021.08.15 @ 17:31:32 Player: djcoinslot Result: Destroyed by D-53 Grenadier with Mini Grenade Launcher Performance ------------- Evolutions (0) 0 Regions Visited (2) 400 Robots Destroyed (21) 105 Value Destroyed (353) 353 Prototype IDs (0) 0 Alien Tech Used (0) 0 Bonus (0) 0 TOTAL SCORE: 858 Bonus ------- None Cogmind --------- Core Integrity 0/250 Matter 274/450 Energy 100/100 System Corruption 0% Temperature Cool (27) Movement Core (150) Ox2 Location -10/Mines Parts ------- > --- POWER (1) -------- (None) > --- PROPULSION (2) --- (None) > --- UTILITY (2) ------ Small Storage Unit Large Matter Pod > --- WEAPON (2) ------- (None) > --- INVENTORY (6) ---- Light Ion Engine Wheel Improved Heat Sink Improved Light Cannon Grenade Launcher Rocket Launcher Peak State ------------ > --- POWER ------------ Light Ion Engine > --- PROPULSION ------- Wheel Wheel > --- UTILITY ---------- Small Storage Unit Medium Matter Pod > --- WEAPON ----------- Improved Light Cannon Rocket Launcher > --- INVENTORY -------- Light Ion Engine Wheel Improved Heat Sink Improved Light Cannon Grenade Launcher Rocket Launcher [Rating: 10] Favorites ----------- Power Light Ion Engine Engine Light Ion Engine Propulsion Compact Wheel Wheel Compact Wheel Utility Small Storage Unit Storage Small Storage Unit Weapon Improved Light Cannon Energy Gun Medium Laser Ballistic Gun Light Assault Rifle Ballistic Cannon Improved Light Cannon Launcher Rocket Launcher Build | -11 -10 -10 ------- Run | Scr Mat Min Slots Evolved . | . . . Power . | . . . Propulsion . | . . . Utility . | . . . Weapon . | . . . Parts Attached 17 | 7 10 . Power 4 | 1 3 . Engine 4 | 1 3 . Core . | . . . Reactor . | . . . Propulsion 5 | 2 3 . Treads . | . . . Leg . | . . . Wheel 5 | 2 3 . Hover . | . . . Flight . | . . . Utility 3 | 2 1 . Device . | . . . Storage 3 | 2 1 . Processor . | . . . Hackware . | . . . Protection . | . . . Artifact . | . . . Weapon 5 | 2 3 . Energy Gun 1 | 1 . . Energy Cannon . | . . . Ballistic Gun 1 | 1 . . Ballistic Cannon 1 | . 1 . Launcher 2 | . 2 . Special Weapon . | . . . Impact Weapon . | . . . Slashing Weapon . | . . . Piercing Weapon . | . . . Special Melee Weapon . | . . . Unidentified Prototypes . | . . . Parts Lost 8 | . 3 5 Power 1 | . . 1 Propulsion 3 | . 1 2 Utility . | . . . Weapon 4 | . 2 2 Highest Loss Streak 5 | . 2 5 Average Slot Usage (%) 97 | . 97 100 Engine 14 | . 14 14 Wheel 27 | . 27 28 Storage 28 | . 28 28 Energy Gun 4 | . 4 . Ballistic Gun 2 | . 2 . Ballistic Cannon 8 | . 8 14 Launcher 10 | . 10 14 Naked Turns . | . . . Heaviest Build 20 | 12 20 20 Greatest Support 32 | 32 32 20 Greatest Overweight (x) . | . . . Average Overweight (x) . | . . . Largest Inventory Capacity 6 | 6 6 6 Average Capacity 5 | 5 6 6 Most Carried 6 | 6 6 6 Average Carried 5 | 3 5 6 Final Capacity 6 | 6 6 6 Final Carried 6 | 6 6 6 Class Distribution -------------------- 61% | Mutant 38% | Scavenger-Mutant Dominant Class ---------------- Scavenger-Mutant | -10/Materials Mutant | -10/Mines Resources | -11 -10 -10 ----------- Run | Scr Mat Min Matter Collected 478 | 341 137 . Remotely . | . . . Salvage Created 504 | 109 294 101 Parts 46 | 11 27 8 Haulers Intercepted 2 | . 2 . Recyclers Shooed 1 | 1 . . Parts Field Recycled . | . . . Retrieved Matter . | . . . Parts Self-Destructed . | . . . Prevented . | . . . Kills | -11 -10 -10 ------- Run | Scr Mat Min Combat Hostiles Destroyed 11 | . 8 3 Guns 4 | . 4 . Cannons 3 | . 2 1 AOE 4 | . 2 2 Classes Destroyed 8 | 3 5 . Worker 1 | 1 . . Builder 1 | . 1 . Tunneler 1 | 1 . . Hauler 2 | . 2 . Recycler 2 | 1 . 1 Watcher 3 | . 3 . Swarmer 6 | . 3 3 Grunt 5 | . 5 . Best Kill Streak 7 | 1 7 4 Combat Bots Only 3 | . 3 3 Max Kills in Single Turn 3 | 1 3 3 Gunslinging . | . . . Exploded 2 | . 1 2 Melee . | . . . Uniques/NPCs Destroyed . | . . . Combat | -11 -10 -10 -------- Run | Scr Mat Min Damage Taken 871 | . 380 491 Core 260 | . 83 177 Absorbed by Shields . | . . . Core Remaining (%) 100 | 100 . . Volleys Fired 40 | 10 26 4 Largest 2 | 2 2 2 Hottest 80 | 70 80 72 Shots Fired 73 | 20 46 7 Gun 53 | 20 33 . Cannon 7 | . 3 4 Launcher 13 | . 10 3 Special . | . . . Kinetic 30 | 10 16 4 Thermal 30 | 10 20 . Explosive 13 | . 10 3 Electromagnetic . | . . . Robot Hit Streak 7 | 4 7 6 Robot Miss Streak 5 | 2 5 . Penetration Max . | . . . Secondary Targets . | . . . Shots Hit Robots 43 | 11 26 6 Core Hits 38 | 6 23 9 Critical Hits . | . . . Critical Kills . | . . . Critical Parts Destroyed . | . . . Melee Attacks . | . . . Impact . | . . . Slashing . | . . . Piercing . | . . . Sneak Attacks . | . . . Combat Hostiles . | . . . Follow-up Attacks . | . . . Damage Inflicted 1309 | 136 918 255 Guns 347 | 136 211 . Cannons 148 | . 60 88 Explosions 814 | . 647 167 Melee . | . . . Ramming . | . . . Kinetic 244 | 35 121 88 Thermal 251 | 101 150 . Explosive 814 | . 647 167 Electromagnetic . | . . . Impact . | . . . Slashing . | . . . Piercing . | . . . Highest Corruption . | . . . Average Corruption . | . . . Corruption Purged . | . . . Overload Shots . | . . . Overflow Damage 30 | . 26 4 Projectiles 4 | . . 4 Explosions 26 | . 26 . Melee . | . . . Knockbacks 1 | . . 1 Impact . | . . . Kinetic 1 | . . 1 Secondary . | . . . Self-Inflicted Damage 112 | . . 112 Shots 3 | . . 3 Rammed . | . . . Targets Rammed . | . . . Kicked . | . . . Crushed . | . . . Highest Temperature 261 | 40 261 28 Average Temperature 75 | 21 98 17 Received Heat Transfer 201 | . 201 . Siege Activations . | . . . Robots Corrupted . | . . . Combat Hostiles . | . . . Parts Fried . | . . . Impact Corruptions . | . . . Robots Melted . | . . . Combat Hostiles . | . . . Parts Melted . | . . . Heat Transferred 740 | 296 444 . Parts Sabotaged . | . . . Parts Stolen . | . . . Parts Stripped . | . . . Power Chain Reactions . | . . . Missiles Intercepted . | . . . Alert | -11 -10 -10 ------- Run | Scr Mat Min Peak Influence 290 | 15 290 187 Initial 112 | . 9 112 Average 105 | 7 138 132 Maximum Alert Level 1 | . 1 . Low Security (%) 94 | 100 92 100 Level 1 5 | . 7 . Level 2 . | . . . Level 3 . | . . . Level 4 . | . . . Level 5 . | . . . High Security . | . . . Max Security . | . . . Squads Dispatched 1 | . 1 . Investigation 1 | . 1 . Extermination . | . . . Reinforcement . | . . . Assault . | . . . Garrison . | . . . Intercept . | . . . Construction Impeded . | . . . Haulers Reinforced . | . . . Stealth | -11 -10 -10 --------- Run | Scr Mat Min Distress Signals 1 | . 1 . Communications Jammed . | . . . Distress Signals . | . . . Times Spotted 20 | . 14 6 Peak Tracking Total 4 | . 4 4 Tactical Retreats . | . . . Traps | -11 -10 -10 ------- Run | Scr Mat Min Traps Triggered . | . . . Indirectly . | . . . Trap Hack Attempts . | . . . Triggered . | . . . Disarmed . | . . . Reprogrammed . | . . . Reused . | . . . Traps Extracted . | . . . Installed . | . . . Triggered . | . . . Machines | -11 -10 -10 ---------- Run | Scr Mat Min Machines Disabled 3 | . 3 . Max in Single Turn 1 | . 1 . Machines Sabotaged . | . . . Garrisons Compromised . | . . . Overloaded Fab Kills . | . . . Fab Network Shutdowns . | . . . Hacking | -11 -10 -10 --------- Run | Scr Mat Min Machines Accessed 4 | . 4 . Terminals 2 | . 2 . Fabricators . | . . . Repair Stations . | . . . Recycling Units 2 | . 2 . Scanalyzers . | . . . Garrison Access . | . . . Total Hacks 14 | . 14 . Successful 11 | . 11 . Failed 3 | . 3 . Catastrophic . | . . . Database Lockouts . | . . . Manual 13 | . 13 . Terminals 8 | . 8 . Fabricators . | . . . Repair Stations . | . . . Recycling Units 6 | . 6 . Scanalyzers . | . . . Garrison Access . | . . . Terminal Hacks . | . . . Fabricator Hacks . | . . . Repair Station Hacks . | . . . Recycling Unit Hacks 2 | . 2 . Report Inventory 2 | . 2 . Scanalyzer . | . . . Garrison Access Hacks . | . . . Unauthorized Hacks 9 | . 9 . Terminals 5 | . 5 . Track 1 | . 1 . Assimilate 2 | . 2 . Botnet 2 | . 2 . Fabricators . | . . . Repair Stations . | . . . Recycling Units 4 | . 4 . Monitor 1 | . 1 . Reject 1 | . 1 . Recyclers 1 | . 1 . Mask 1 | . 1 . Scanalyzers . | . . . Garrison Access . | . . . Data Cores Recovered . | . . . Used . | . . . Hacking Detections 4 | . 4 . Full Trace Events 1 | . 1 . Feedback Events . | . . . Feedback Blocked . | . . . Robot Schematics Acquired . | . . . Robots Built . | . . . Matter . | . . . Time . | . . . Total Robot Build Rating . | . . . Part Schematics Acquired . | . . . Parts Built . | . . . Matter . | . . . Time . | . . . Total Part Build Rating . | . . . Parts Repaired . | . . . Time . | . . . Parts Recycled . | . . . Recycled Matter . | . . . Retrieved Matter . | . . . Retrieved Components . | . . . Parts Scanalyzed . | . . . Part Schematics Acquired . | . . . Parts Damaged . | . . . Bothacking | -11 -10 -10 ------------ Run | Scr Mat Min Used RIF Installer . | . . . Robots Hacked . | . . . Non-combat . | . . . Combat . | . . . Robot Hacks Applied . | . . . Relay Couplers Released . | . . . Robots Rewired . | . . . Allies Hacked . | . . . Hacks Repelled . | . . . Allies | -11 -10 -10 -------- Run | Scr Mat Min Total Allies . | . . . Largest Group . | . . . Highest-Rated Group . | . . . Highest-Rated Ally . | . . . Total Orders . | . . . Ally Attacks . | . . . Total Damage . | . . . Kills . | . . . Allies Corrupted . | . . . Allies Melted . | . . . Intel | -11 -10 -10 ------- Run | Scr Mat Min Robot Analysis Total . | . . . Derelict Logs Recovered 1 | . . 1 Drone Launches . | . . . Drone Recoveries . | . . . Exploration | -11 -10 -10 ------------- Run | Scr Mat Min Turns Passed 558 | 141 390 27 Spaces Moved 466 | 96 351 19 Core 1 | 1 . . Treads . | . . . Legs . | . . . Wheels 465 | 95 351 19 Hover . | . . . Flight . | . . . Fastest Speed 50 | 50 80 80 Average Speed 87 | 99 84 80 Slowest Speed 100 | 100 100 80 Overloaded Moves . | . . . Propulsion Burnouts . | . . . Robots Hopped . | . . . Cave-ins Triggered . | . . . Exploration Rate (%) 19 | 5 42 12 Regions Visited 2 Branch Regions 1 Pre-discovered Areas . | . . . Known Exits Taken . | . . . Unknown Exits Taken 2 | 1 1 . Scrap Searched . | . . . Spaces Dug . | . . . Terrain Destroyed 69 | . 44 25 Melee . | . . . Projectile . | . . . AOE 69 | . 44 25 Terrain Rammed . | . . . Walls Destroyed . | . . . Machines Disabled . | . . . Actions | -11 -10 -10 --------- Run | Scr Mat Min Total 550 | 122 404 24 Wait 4 | . 3 1 Move 464 | 95 350 19 Hop . | . . . Pick Up 14 | 8 6 . Fast Attach 9 | 7 2 . Attach 1 | . 1 . Detach . | . . . Swap 7 | . 7 . Drop 11 | 2 9 . Fire 40 | 10 26 4 Melee . | . . . Ram . | . . . Kick . | . . . Crush . | . . . Escape Stasis . | . . . Rewire . | . . . Trap . | . . . Miscellaneous . | . . . Route ------- -11/Scrapyard -10/Materials (discovered 2 exits: [*Mat] / [*Min]) -10/Mines (discovered 1 exit: [*Mat]) History --------- Turn | Location | Event 19 | -11/Scrapyard | Discovered new exit (range 16) 142 | -11/Scrapyard | Entered Materials 289 | -10/Materials | Discovered new exit (range 13) 425 | -10/Materials | Discovered new exit (range 8) 532 | -10/Materials | Entered Mines 541 | -10/Mines | Learned Materials interactive machine intel 542 | -10/Mines | Assembled infested the area 552 | -10/Mines | Core integrity fell below 50% 555 | -10/Mines | Core integrity fell below 20% 557 | -10/Mines | Discovered new exit (range 10) 559 | -10/Mines | Destroyed by D-53 Grenadier with Mini Grenade Launcher Last Messages --------------- 00533_ K-01 Serf collects debris. 00536_ K-01 Serf cleans the Laser Drill. 00537_ K-01 Serf collects debris. 00541_ Acquired derelict log, extracted data. Data stored: Materials interactive machine intel. 00542_ ALERT: Infestation in the mines, dispatching Demolisher response squad. 00549_ Destroyed Flight Unit. 00549_ S-10 Pest knocked back. 00551_ S-10 Pest destroyed. 00551_ C-30 ARC bursts open, deploying its payload. 00551_ D-53 Grenadier unfolds itself. 00554_ R-06 Scavenger destroyed. 00556_ K-01 Serf collects debris. 00557_ EXIT=FOUND 00558_ Wheel destroyed. 00558_ Imp. Light Cannon destroyed. 00558_ Ion Engine destroyed. 00558_ Rocket Launcher destroyed. 00559_ Wheel destroyed. Map ----- +----------------------------------------------------+ | ????????????????????????????????????????????? | | ????????????????????????????????????????????? | | ????????????????????????????????????????????? | | ????????????????????????????????????????????? | | ????????????????????????????????????????????? | | ????????????????????????????????????????????? | | ????????????????????????????????????????????? | | ????????????????????????????????????????????? | | ????????????????????????????????????????????? | | ????????????????????????????????????????????? | | ????????????????????????????????????????????? | | ????????????????????????????????????????????? | | ????????????????????????????????????????????? | | ??????????????? ???????????????????????????? | | ?????????????? #?####?????????????????????? | | ??????????????? ## ?????????????????????? | | ???????????????? ????????????????????? | | ????????????????# ??????????#?????????? | | ?????????????????# ????????? ##????????? | | ?????????????????# #??????? #????????? | | ?????????????????# ###### #?????????? | | ??????????????????# ???????????? | | ??????????????????# #????????????? | | ???????????????????# #?????????????? | | ???????????????????# #??###########? | | ???????????????????# @ #??# #? | | ??????????????????# #??# """ #? | | ??????????????????## dd #### """ #? | | ??????????????????# ## """ #? | | ????????????????? ### ## #? | | ????????????????## % ##?# k """ """ #? | | ?????????????????## ####??#### """ """ #? | | ??????????????????# k ?????????# """ """ #? | | ??????????????????# ?????????# #? | | ??????????????????##